fUST/lending_fUST_20251221
["ID","MTS","AMOUNT","RATE_DAILY","PERIOD"]
[399305815,1766271962980,-345.39852634,0.00011172,2]
[399305816,1766271995757,500.0,0.00032876,120]
[399305821,1766272010432,-76.1549543,0.00011172,2]
[399305822,1766272010454,-41.26482984,0.00011285,2]
[399305823,1766272010474,-234.35350185,0.000115,2]
[399305825,1766272014626,500.0,0.00032876,120]
[399305829,1766272024795,1000.0,0.00032876,120]
[399305835,1766272034031,1000.0,0.00032876,120]
[399305840,1766272044039,1000.0,0.00032876,120]
[399305853,1766272073486,555.58,0.00032876,120]
[399305858,1766272083225,405.12,6.993e-05,2]
[399305859,1766272083579,405.12,6.993e-05,2]
[399305907,1766272216581,3000.0,0.00010959,2]
[399305933,1766272232419,-5000.0,0.00011355,2]
[399305935,1766272232429,-581.0,0.0001147,2]
[399305937,1766272232438,-342.02238981,0.000115,2]
[399305939,1766272232448,-1200.0,0.00011586,2]
[399305941,1766272232457,-300.0,0.00011586,2]
[399305942,1766272232467,-499.96294896,0.00011586,2]
[399305943,1766272232477,-19.56516882,0.00011586,2]
[399305944,1766272232489,-165.75154844,0.00011586,2]
[399305946,1766272232499,-160.0,0.00011587,2]
[399305948,1766272232508,-151.0,0.00011587,2]
[399305949,1766272232517,-151.0,0.00011587,2]
[399305950,1766272232527,-157.53867475,0.00011587,2]
[399305951,1766272232570,-167.82940882,0.00011586,2]
[399305952,1766272232580,-2.46132525,0.00011587,2]
[399305953,1766272232589,-151.0,0.00011587,2]
[399305954,1766272232599,-160.0,0.00011587,2]
[399305955,1766272232608,-82.63111946,0.00011587,2]
[399305956,1766272232774,-68.36888054,0.00011587,2]
[399305957,1766272232785,-160.0,0.00011587,2]
[399305958,1766272232796,-151.0,0.00011587,2]
[399305959,1766272232806,-185.90747796,0.00011587,2]
[399305960,1766272232815,-151.0,0.00011587,2]
[399305961,1766272232825,-151.0,0.00011587,2]
[399305962,1766272232835,-151.0,0.00011587,2]
[399305963,1766272232844,-151.0,0.00011587,2]
[399305964,1766272232855,-151.0,0.00011587,2]
[399305965,1766272232865,-2773.56790519,0.00011587,2]
[399305966,1766272232874,-292.54011001,0.00011587,2]
[399305967,1766272232885,-1943.0,0.00011587,2]
[399305968,1766272232894,-1000.0,0.00011587,2]
[399305969,1766272232904,-50000.0,0.00011587,2]
[399305970,1766272232914,-151.0,0.000116,2]
[399305971,1766272232925,-151.0,0.000116,2]
[399305972,1766272232934,-342.0223898,0.00011684,2]
[399305973,1766272232944,-1317.26829919,0.00011736,2]
[399305974,1766272232954,-500.0,0.00011746,2]
[399305975,1766272232964,-500.0,0.00011746,3]
[399305976,1766272232974,-500.0,0.00011746,4]
[399305977,1766272232984,-500.0,0.00011746,5]
[399305978,1766272232994,-500.0,0.00011752,6]
[399305979,1766272233004,-500.0,0.00011753,7]
[399305980,1766272233014,-617.67054911,0.00011753,8]
[399305981,1766272233024,-297.19968327,0.00011853,2]
[399305982,1766272233035,-366.77554943,0.00011853,2]
[399305983,1766272233045,-229.55673713,0.00011853,2]
[399305984,1766272233056,-254.4713606,0.00011853,2]
[399305985,1766272233067,-458.04844907,0.00011853,2]
[399305986,1766272233076,-217.0060798,0.00011853,2]
[399305987,1766272233086,-342.0223898,0.00011868,2]
[399305988,1766272233097,-334.9681364,0.00012021,3]
[399305989,1766272233106,-342.0223898,0.00012051,2]
[399305990,1766272233116,-342.02,0.00012135,2]
[399305991,1766272233127,-221.22,0.00012135,2]
[399305992,1766272233136,-221.22,0.00012135,2]
[399305993,1766272233145,-221.22,0.00012135,2]
[399305994,1766272233155,-221.22,0.00012135,2]
[399305995,1766272233164,-221.22,0.00012135,2]
[399305996,1766272233174,-221.22,0.00012135,2]
[399305997,1766272233184,-221.18,0.00012135,2]
[399305998,1766272233194,-2876.18991768,0.00012135,2]
[399305999,1766272233203,-1943.0,0.00012135,2]
[399306000,1766272233215,-22737.59986294,0.0001216,2]
[399306001,1766272233226,-342.0223898,0.00012235,2]
[399306002,1766272233236,-3000.0,0.00012329,2]
[399306003,1766272233246,-214.67432569,0.00012435,2]
[399306004,1766272233256,-500.0,0.00012557,2]
[399306005,1766272233266,-172.4276583,0.00012653,3]
[399306006,1766272233276,-2982.60894464,0.00012683,2]
[399306007,1766272233285,-1943.0,0.00012683,2]
[399306008,1766272233295,-2159.0,0.00012713,2]
[399306009,1766272233305,-1362.0,0.00012713,2]
[399306010,1766272233315,-632.0,0.00012713,2]
[399306011,1766272233324,-420.0,0.00012724,2]
[399306012,1766272233334,-300.0,0.00012735,2]
[399306013,1766272233344,-300.0,0.00012735,2]
[399306014,1766272233354,-300.0,0.00012735,2]
[399306015,1766272233364,-300.0,0.00012735,2]
[399306016,1766272233374,-300.0,0.00012735,2]
[399306017,1766272233385,-300.0,0.00012735,2]
[399306018,1766272233394,-300.0,0.00012735,2]
[399306019,1766272233404,-300.0,0.00012735,2]
[399306020,1766272233414,-300.0,0.00012735,2]
[399306021,1766272233424,-300.0,0.00012735,2]
[399306022,1766272233434,-300.0,0.00012735,2]
[399306023,1766272233443,-300.0,0.00012735,2]
[399306024,1766272233453,-300.0,0.00012735,2]
[399306025,1766272233463,-300.0,0.00012735,2]
[399306026,1766272233473,-300.0,0.00012735,2]
[399306027,1766272233483,-600.0,0.00012735,2]
[399306028,1766272233492,-150.104,0.00012967,2]
[399306029,1766272233502,-150.857,0.00012967,2]
[399306030,1766272233512,-151.453,0.00012967,2]
[399306031,1766272233523,-150.0,0.00012967,2]
[399306032,1766272233532,-1078.2274862,0.00013225,2]
[399306033,1766272233542,-3092.96547559,0.00013231,2]
[399306034,1766272233552,-1943.0,0.00013231,2]
[399306035,1766272233563,-1078.2274862,0.00013272,2]
[399306036,1766272233573,-500.0,0.00013273,2]
[399306037,1766272233582,-342.28101888,0.00013273,2]
[399306038,1766272233595,-92.11445675,0.00013273,2]
[399306039,1766272233606,-500.0,0.00013273,2]
[399306040,1766272233616,-500.0,0.00013273,2]
[399306041,1766272233627,-213.85750179,0.00013273,2]
[399306042,1766272233637,-117.6798225,0.00013273,2]
[399306068,1766272238321,-338.84055212,0.00011587,2]
[399306086,1766272238492,-466.61901712,0.00011587,2]
[399306088,1766272238502,-773.0,0.000131,2]
[399306091,1766272238511,-382.3201775,0.00013273,2]
[399306092,1766272238521,-500.0,0.00013273,2]
[399306095,1766272238530,-500.0,0.00013273,2]
[399306096,1766272238539,-500.0,0.00013273,2]
[399306098,1766272238548,-500.0,0.00013273,2]
[399306100,1766272238558,-500.0,0.00013273,2]
[399306102,1766272238567,-500.45758173,0.00013273,2]
[399306105,1766272238576,-197.10322365,0.00013273,2]
[399306107,1766272238587,-302.89677635,0.00013273,2]
[399306109,1766272238596,-500.0,0.00013273,2]
[399306111,1766272238606,-500.0,0.00013273,2]
[399306113,1766272238615,-500.0,0.00013273,2]
[399306115,1766272238624,-500.0,0.00013273,2]
[399306117,1766272238633,-500.0,0.00013273,2]
[399306119,1766272238643,-500.0,0.00013273,2]
[399306121,1766272238652,-500.0,0.00013273,2]
[399306123,1766272238662,-500.0,0.00013273,2]
[399306125,1766272238671,-500.0,0.00013273,2]
[399306127,1766272238680,-500.0,0.00013273,2]
[399306129,1766272238689,-500.0,0.00013273,2]
[399306131,1766272238699,-548.52184751,0.00013273,2]
[399306133,1766272238708,-500.0,0.00013273,2]
[399306135,1766272238718,-519.06523777,0.00013273,2]
[399306137,1766272238728,-645.46757622,0.00013273,2]
[399306139,1766272238738,-500.0,0.00013273,2]
[399306141,1766272238747,-500.0,0.00013273,2]
[399306143,1766272238756,-500.0,0.00013273,2]
[399306145,1766272238766,-500.0,0.00013273,2]
[399306147,1766272238775,-500.0,0.00013273,2]
[399306149,1766272238784,-500.0,0.00013273,2]
[399306151,1766272238793,-492.84330439,0.00013273,2]
[399306153,1766272238803,-500.0,0.00013273,2]
[399306155,1766272238812,-500.0,0.00013273,2]
[399306157,1766272238821,-500.0,0.00013273,2]
[399306159,1766272238831,-500.0,0.00013273,2]
[399306161,1766272238840,-500.0,0.00013273,2]
[399306163,1766272238849,-448.48362501,0.00013273,2]
[399306165,1766272238859,-500.0,0.00013273,2]
[399306167,1766272238869,-500.0,0.00013273,2]
[399306169,1766272238879,-500.0,0.00013273,2]
[399306171,1766272238890,-500.0,0.00013273,2]
[399306173,1766272238899,-387.72163265,0.00013273,2]
[399306178,1766272239745,-112.27836735,0.00013273,2]
[399306179,1766272239755,-500.0,0.00013273,2]
[399306180,1766272239764,-500.0,0.00013273,2]
[399306181,1766272239773,-458.820094,0.00013273,2]
[399306182,1766272239782,-500.0,0.00013273,2]
[399306183,1766272239791,-500.0,0.00013273,2]
[399306184,1766272239801,-500.0,0.00013273,2]
[399306185,1766272239810,-500.0,0.00013273,2]
[399306186,1766272239821,-500.0,0.00013273,2]
[399306187,1766272239830,-500.0,0.00013273,2]
[399306188,1766272239839,-1078.2274862,0.00013319,2]
[399306189,1766272239848,-1078.2274862,0.00013366,2]
[399306190,1766272239857,-1078.2274862,0.00013413,2]
[399306191,1766272239867,-1078.2274862,0.0001346,2]
[399306192,1766272239876,-1078.2274862,0.00013507,2]
[399306193,1766272239886,-10000.0,0.0001354,2]
[399306194,1766272239894,-1078.2274862,0.00013554,2]
[399306195,1766272239903,-2000.0,0.00013586,2]
[399306196,1766272239913,-589.95627978,0.00013586,2]
[399306197,1766272239922,-1078.2274862,0.00013601,2]
[399306198,1766272239931,-1079.30571368,0.00013648,2]
[399306199,1766272239940,-300.0,0.00013673,2]
[399306200,1766272239950,-3655.80563822,0.00013699,2]
[399306201,1766272239964,-40161.96984318,0.00013699,2]
[399306203,1766272239975,-822.42279838,0.00013699,2]
[399306204,1766272239987,-645.04527772,0.00013699,2]
[399306205,1766272239998,-1049.11911392,0.00013699,2]
[399306206,1766272240009,-890.15205145,0.00013699,2]
[399306207,1766272240020,-281.00478041,0.00013699,2]
[399306208,1766272240032,-333.71912776,0.00013699,2]
[399306209,1766272240044,-2477.74752223,0.00013699,2]
[399306218,1766272240915,-3e-08,0.00013699,2]
[399306219,1766272240926,-1023.59729684,0.00013699,2]
[399306220,1766272240937,-303.59,0.00013699,2]
[399306221,1766272240948,-1499.98806,0.00013699,2]
[399306225,1766272243540,-39.08592067,0.0001267,2]
[399306226,1766272243552,-128.52336523,0.0001267,2]
[399306227,1766272243563,-415.0,0.00012752,2]
[399306228,1766272243573,-415.0,0.00012752,2]
[399306229,1766272243582,-11090.12642786,0.00013699,2]
[399306230,1766272243592,-21353.20155436,0.00013699,2]
[399306238,1766272246334,-1434.71368843,0.00013699,2]
[399306239,1766272246346,-14938.61798781,0.00013699,2]
[399306240,1766272246355,-1383.652089,0.00013699,2]
[399306241,1766272246363,-238.30466,0.00013699,2]
[399306242,1766272246372,-238.30466,0.00013699,2]
[399306243,1766272246381,-238.30466,0.00013699,2]
[399306244,1766272246390,-238.30466,0.00013699,2]
[399306245,1766272246399,-511.791347,0.00013699,2]
[399306246,1766272246408,-500.0,0.00013699,2]
[399306247,1766272246417,-500.0,0.00013699,2]
[399306248,1766272246425,-500.0,0.00013699,2]
[399306249,1766272246434,-500.0,0.00013699,2]
[399306250,1766272246443,-250.84708939,0.00013699,2]
[399306251,1766272246452,-500.0,0.00013699,2]
[399306252,1766272246461,-500.0,0.00013699,2]
[399306253,1766272246470,-500.0,0.00013699,2]
[399306254,1766272246478,-249.18459881,0.00013699,2]
[399306255,1766272246487,-500.0,0.00013699,2]
[399306256,1766272246496,-500.0,0.00013699,2]
[399306257,1766272246505,-500.0,0.00013699,2]
[399306258,1766272246514,-500.0,0.00013699,2]
[399306259,1766272246523,-500.0,0.00013699,2]
[399306260,1766272246532,-500.0,0.00013699,2]
[399306261,1766272246540,-500.0,0.00013699,2]
[399306262,1766272246549,-500.0,0.00013699,2]
[399306263,1766272246558,-500.0,0.00013699,2]
[399306264,1766272246568,-500.80589859,0.00013699,2]
[399306265,1766272246576,-500.0,0.00013699,2]
[399306266,1766272246585,-504.09291857,0.00013699,2]
[399306267,1766272246594,-500.0,0.00013699,2]
[399306268,1766272246603,-159.49621906,0.00013699,2]
[399306269,1766272246612,-500.0,0.00013699,2]
[399306270,1766272246620,-436.73985652,0.00013699,2]
[399306271,1766272246630,-500.0,0.00013699,2]
[399306272,1766272246639,-500.0,0.00013699,2]
[399306273,1766272246648,-500.0,0.00013699,2]
[399306274,1766272246657,-500.0,0.00013699,2]
[399306275,1766272246666,-500.0,0.00013699,2]
[399306276,1766272246675,-500.0,0.00013699,2]
[399306277,1766272246683,-500.0,0.00013699,2]
[399306278,1766272246692,-217.60142845,0.00013699,2]
[399306279,1766272246701,-158.23367212,0.00013699,2]
[399306280,1766272246710,-500.0,0.00013699,2]
[399306281,1766272246718,-508.33144653,0.00013699,2]
[399306282,1766272246727,-500.0,0.00013699,2]
[399306283,1766272246736,-500.0,0.00013699,2]
[399306284,1766272246745,-382.1907639,0.00013699,2]
[399306285,1766272246756,-117.8092361,0.00013699,2]
[399306286,1766272246765,-500.0,0.00013699,2]
[399306287,1766272246774,-233.97800171,0.00013699,2]
[399306288,1766272247630,-266.02199829,0.00013699,2]
[399306289,1766272247645,-500.0,0.00013699,2]
[399306290,1766272247657,-500.0,0.00013699,2]
[399306291,1766272247668,-500.0,0.00013699,2]
[399306292,1766272247680,-500.0,0.00013699,2]
[399306293,1766272247693,-2000.0,0.00013699,2]
[399306294,1766272247704,-238.30466,0.00013699,2]
[399306295,1766272247716,-238.30466,0.00013699,2]
[399306296,1766272247727,-238.30466,0.00013699,2]
[399306297,1766272247739,-19.06402171,0.00013699,2]
[399306298,1766272247752,-219.24063829,0.00013699,2]
[399306299,1766272247763,-85.75936172,0.00013699,2]
[399306301,1766272294839,150.0,8.303e-05,2]
[399306302,1766272294877,150.0,8.506e-05,2]
[399306303,1766272294918,150.0,8.708e-05,2]
[399306304,1766272295165,150.0,8.911e-05,2]
[399306305,1766272296062,150.0,9.113e-05,2]
[399306306,1766272296992,150.0,9.316e-05,2]
[399306307,1766272297441,150.0,9.519e-05,2]
[399306308,1766272362274,150.0,8.243e-05,2]
[399306309,1766272362701,150.0,8.444e-05,2]
[399306310,1766272363122,150.0,8.645e-05,2]
[399306311,1766272363527,150.0,8.846e-05,2]
[399306312,1766272363954,150.0,9.047e-05,2]
[399306313,1766272364356,150.0,9.248e-05,2]
[399306314,1766272364802,150.0,9.449e-05,2]
[399306315,1766272368617,232.14604371,0.00010533,2]
[399306316,1766272375413,-737.45537428,0.0001123,2]
[399306317,1766272377092,-157.729808,0.0001123,2]
[399306318,1766272428679,150.0,8.244e-05,2]
[399306319,1766272429103,150.0,8.445e-05,2]
[399306320,1766272429580,150.0,8.646e-05,2]
[399306321,1766272429994,150.0,8.847e-05,2]
[399306322,1766272430421,150.0,9.048e-05,2]
[399306323,1766272430837,150.0,9.249e-05,2]
[399306340,1766272444561,169.810923,5.932e-05,2]
[399306341,1766272444752,169.810923,8.899e-05,2]
[399306342,1766272452922,508.754299,0.00032876,120]
[399306343,1766272452961,2618.00211029,0.00011026,2]
[399306344,1766272452989,2381.99788971,0.00011026,2]
[399306352,1766272470004,508.754299,0.00032877,120]
[399306354,1766272476971,5000.0,0.00011026,2]
[399306360,1766272494718,150.0,8.028e-05,2]
[399306362,1766272495135,150.0,8.224e-05,2]
[399306363,1766272495547,150.0,8.42e-05,2]
[399306364,1766272495990,151.71,8.616e-05,2]
[399306365,1766272496377,189.63,8.812e-05,2]
[399306367,1766272496793,227.56,9.007e-05,2]
[399306368,1766272497215,265.49,9.203e-05,2]
[399306369,1766272497658,303.41,9.399e-05,2]
[399306370,1766272498088,341.34,9.595e-05,2]
[399306371,1766272498525,379.27,9.791e-05,2]
[399306372,1766272500097,309.60211029,0.00011026,2]
[399306373,1766272500125,4690.39788971,0.00011026,2]
[399306378,1766272505780,508.754299,0.00032876,120]
[399306383,1766272514960,508.754299,0.00032876,120]
[399306384,1766272523866,5000.0,0.00011026,2]
[399306385,1766272527864,166.04247426,0.00010853,2]
[399306386,1766272539728,-33.39899257,0.0001123,2]
[399306387,1766272539751,-342.22016425,0.0001127,2]
[399306388,1766272541866,-296.26796352,0.0001127,2]
[399306389,1766272554786,-310.98655757,0.00011157,2]
[399306390,1766272558094,-393.38593051,0.00011157,2]
[399306391,1766272559766,-164.98032726,0.00011157,2]
[399306392,1766272561927,-284.6344141,0.00011157,2]
[399306393,1766272563823,-200.21115038,0.00011157,2]
[399306394,1766272566606,143.56963603,8.138e-05,2]
[399306395,1766272566648,6.43036397,8.138e-05,2]
[399306396,1766272566956,-281.68920644,0.00011157,2]
[399306397,1766272567026,150.0,8.337e-05,2]
[399306398,1766272567455,150.0,8.535e-05,2]
[399306399,1766272567857,150.0,8.734e-05,2]
[399306400,1766272569555,-290.46925818,0.00011157,2]
[399306401,1766272571053,-285.88565757,0.00011157,2]
[399306402,1766272574596,-242.37310353,0.00011157,2]
[399306403,1766272576126,-385.47417377,0.00011157,2]
[399306404,1766272579897,-287.6699232,0.00011157,2]
[399306405,1766272581293,-404.92190428,0.00011157,2]
[399306406,1766272583878,-273.19444444,0.00011157,2]
[399306407,1766272585997,-245.26981454,0.00011157,2]
[399306408,1766272590071,-458.70872275,0.00011157,2]
[399306409,1766272592408,-195.54659478,0.00011157,2]
[399306410,1766272594800,-178.82318449,0.00011157,2]
[399306411,1766272660318,-115.77563221,0.00011157,2]
[399306412,1766272660340,-92.06031383,0.00011214,2]
[399306413,1766272675320,-830.91644952,0.0001107,2]
[399306416,1766272677795,-316.00207035,0.0001107,2]
[399306417,1766272680623,-197.79623766,0.0001107,2]
[399306418,1766272680922,5000.0,0.00011026,2]
[399306419,1766272682029,500.0,0.0003287,120]
[399306420,1766272682808,-363.91625497,0.0001107,2]
[399306421,1766272688326,-345.54762004,0.0001107,2]
[399306422,1766272691566,-368.13813171,0.0001107,2]
[399306423,1766272694296,-202.84598999,0.0001107,2]
[399306424,1766272697878,-273.19444444,0.0001107,2]
[399306425,1766272698182,500.0,0.00032876,120]
[399306426,1766272700704,1000.0,0.00032876,120]
[399306427,1766272701898,-206.8269527,0.0001107,2]
[399306428,1766272704334,4543.57963603,0.00011026,2]
[399306429,1766272704360,456.42036397,0.00011026,2]
[399306430,1766272704656,-318.78213986,0.0001107,2]
[399306431,1766272707114,-190.38963643,0.0001107,2]
[399306432,1766272709502,-328.75445519,0.0001107,2]
[399306433,1766272712874,-57.91831234,0.0001107,2]
[399306434,1766272712899,-165.83785779,0.00011214,2]
[399306435,1766272721366,273.19444444,0.00011026,2]
[399306436,1766272729092,5000.0,0.00011026,2]
[399306437,1766272748676,500.0,0.00032876,120]
[399306438,1766272753763,4270.39519159,0.00011026,2]
[399306439,1766272755321,500.0,0.00032876,120]
[399306440,1766272765296,-234.16943277,0.00011026,2]
[399306441,1766272766870,-251.2682324,0.00011026,2]
[399306442,1766272768353,3000.0,0.00032876,120]
[399306443,1766272769421,-244.16714324,0.00011026,2]
[399306444,1766272769446,-216.97074727,0.00011214,2]
[399306445,1766272786969,1000.0,0.00032876,120]
[399306446,1766272792457,5000.0,0.00032876,120]
[399306447,1766272807947,1000.0,0.00032876,120]
[399306448,1766272810295,-269.05336445,0.00011213,2]
[399306449,1766272816474,9000.0,0.00032876,120]
[399306450,1766272846884,1374.32537575,0.000328,120]
[399306451,1766272956686,6769.84038105,0.000328,120]
[399306452,1766272956846,508.754308,0.00032877,120]
[399306453,1766272970555,508.754299,0.00032877,120]
[399306454,1766272974704,-308.94663555,0.00011213,2]
[399306455,1766272974727,-142.04622986,0.00011213,2]
[399306456,1766272976271,-300.00887776,0.00011213,2]
[399306457,1766272980555,508.754299,0.00032877,120]
[399306458,1766272987752,508.754299,0.00032877,120]
[399306473,1766273155903,500.0,0.00032876,120]
[399306490,1766273216848,500.0,0.00032876,120]
[399306496,1766273238408,-40.11241022,0.00011213,2]
[399306499,1766273251300,199.97,0.00032876,120]
[399306500,1766273267031,-300.0,0.00011853,2]
[399306501,1766273273969,500.0,0.00032876,120]
[399306502,1766273277684,158.98481057,0.00010726,2]
[399306503,1766273282646,300.0,0.00011853,2]
[399306504,1766273288233,-2089.31439342,0.00011854,2]
[399306505,1766273288268,-1494.38226831,0.00011854,2]
[399306506,1766273288302,-175.93708843,0.00011854,2]
[399306507,1766273288613,-2480.74249968,0.00011854,2]
[399306508,1766273289319,6250.0,0.00030137,120]
[399306511,1766273312371,5038.52500064,0.0001,2]
[399306512,1766273312397,3009.25292141,0.0001,2]
[399306513,1766273312531,2914.23989497,0.0001,2]
[399306514,1766273316631,1763.24756591,8.9e-05,2]
[399306515,1766273365714,2313.26961771,0.00011854,2]
[399306516,1766273365742,2686.73038229,0.00011854,2]
[399306517,1766273388864,5000.0,0.00011854,2]
[399306518,1766273412517,2313.27961771,0.00011854,2]
[399306519,1766273412543,2686.72038229,0.00011854,2]
[399306520,1766273424555,3128.81126949,0.00032876,120]
[399306555,1766273432480,-169.810923,0.00011865,2]
[399306557,1766273432490,-338.66302335,0.00011923,2]
[399306656,1766273435371,4151.06185642,0.00011854,2]
[399306657,1766273436035,3162.22776129,0.00011854,2]
[399306658,1766273436063,1837.77223871,0.00011854,2]
[399306666,1766273439304,-133.86114414,0.00011923,2]
[399306667,1766273439314,-245.0,0.00012,2]
[399306668,1766273439324,-1881.87027125,0.00012074,2]
[399306669,1766273439333,-2871.7475044,0.00012121,2]
[399306670,1766273439342,-1018.0,0.00012146,2]
[399306671,1766273439351,-2871.74750437,0.00012148,2]
[399306672,1766273439361,-604.75357584,0.00012175,2]
[399306679,1766273441227,-3e-08,0.00012175,2]
[399306680,1766273441239,-999.3076169,0.00012175,2]
[399306735,1766273441998,172.43481893,0.00010843,2]
[399307202,1766273446590,-1267.6863116,0.00012175,2]
[399307204,1766273446600,-95.47767182,0.00012202,2]
[399307247,1766273478080,500.0,0.00032,120]
[399307248,1766273508110,7989.80294236,0.00011749,2]
[399307249,1766273508136,10000.01,0.00011749,2]
[399307250,1766273508162,10000.01,0.00011749,2]
[399307251,1766273508187,10000.01,0.00011749,2]
[399307252,1766273508212,10000.01,0.00011749,2]
[399307253,1766273508239,10000.01,0.00011749,2]
[399307254,1766273508264,10000.01,0.00011749,2]
[399307255,1766273508288,10000.01,0.00011749,2]
[399307256,1766273508312,10000.01,0.00011749,2]
[399307257,1766273508336,10000.01,0.00011749,2]
[399307258,1766273519454,10000.0,0.00032,120]
[399307259,1766273541372,-300.0,0.00011748,2]
[399307260,1766273576416,-6672.69629861,0.00011749,2]
[399307261,1766273576564,-10000.01,0.00011749,2]
[399307262,1766273576794,-10000.01,0.00011749,2]
[399307263,1766273576990,-2774.81047167,0.00011749,2]
[399307264,1766273577015,-4450.38905666,0.00011749,2]
[399307265,1766273587835,168.77620111,0.00010836,2]
[399307266,1766273630437,60120.40443035,0.0003,120]
[399307267,1766273660048,5000.0,0.0001185,2]
[399307268,1766273714977,3907.5247844,0.00011767,2]
[399307269,1766273749530,509.27066776,0.00011609,2]
[399307270,1766273783749,185.7180589,0.0001,2]
[399307273,1766273865869,397.49648894,0.0001185,2]
[399307274,1766273865902,4602.50351106,0.0001185,2]
[399307275,1766273871828,2010.68433566,0.0003287,120]
[399307276,1766273889364,5000.0,0.0001185,2]
[399307277,1766273913859,397.50648894,0.0001185,2]
[399307278,1766273913884,4602.49351106,0.0001185,2]
[399307279,1766273937946,5000.0,0.0001185,2]
[399307280,1766273961904,397.51648894,0.0001185,2]
[399307281,1766273961930,4602.48351106,0.0001185,2]
[399307282,1766273985402,5000.0,0.0001185,2]
[399307283,1766274008323,397.52648894,0.0001185,2]
[399307284,1766274008353,4602.47351106,0.0001185,2]
[399307285,1766274023090,239.21008039,0.0001,2]
[399307286,1766274024689,3000.0,0.00011718,2]
[399307287,1766274031299,2158.32640855,0.0001185,2]
[399307288,1766274031329,2841.67359145,0.0001185,2]
[399307289,1766274055923,5000.0,0.0001185,2]
[399307290,1766274062547,-420.66814945,0.00011854,2]
[399307291,1766274080371,5000.0,0.00011854,2]
[399307292,1766274103262,4158.6737011,0.00011854,2]
[399307293,1766274103291,841.3262989,0.00011854,2]
[399307294,1766274126720,5000.0,0.00011854,2]
[399307295,1766274150504,4158.6837011,0.00011854,2]
[399307296,1766274150533,841.3162989,0.00011854,2]
[399307297,1766274174088,5000.0,0.00011854,2]
[399307298,1766274198209,4158.6937011,0.00011854,2]
[399307299,1766274198236,841.3062989,0.00011854,2]
[399307300,1766274221217,5000.0,0.00011854,2]
[399307301,1766274245171,4158.7037011,0.00011854,2]
[399307302,1766274245197,841.2962989,0.00011854,2]
[399307303,1766274269169,5000.0,0.00011854,2]
[399307304,1766274291509,4158.7137011,0.00011854,2]
[399307305,1766274291534,841.2862989,0.00011854,2]
[399307306,1766274316496,5000.0,0.00011854,2]
[399307307,1766274331586,1890.77995008,0.00011834,2]
[399307308,1766274341955,2267.94375102,0.00011854,2]
[399307309,1766274341983,2732.05624898,0.00011854,2]
[399307310,1766274344977,500.0,0.00032876,120]
[399307311,1766274350139,5000.0,0.00032876,120]
[399307312,1766274380835,500.0,0.00032876,120]
[399307313,1766274392328,5000.0,0.00032876,120]
[399307314,1766274417318,5000.0,0.00032876,120]
[399307319,1766274445123,5000.0,0.00032876,120]
[399307320,1766274451269,1000.0,0.00032876,120]
[399307321,1766274458386,150.0,0.0003287,120]
[399307322,1766274477980,5000.0,0.00032876,120]
[399307323,1766274489082,1527.90332582,0.00011753,5]
[399307324,1766274510191,5000.0,0.00032876,120]
[399307325,1766274542079,5000.0,0.00032876,120]
[399307332,1766274590252,1346.0,0.00032876,120]
[399307333,1766274607503,50000.0,0.0003287,120]
[399307334,1766274615227,633.2463271,0.00032876,120]
[399307363,1766274637254,27673.83,0.00032877,120]
[399307384,1766274637606,-300.0,0.00011985,2]